bitfinex-derivatives/quotes_BNBF0:USTF0_20250523
["timestamp","ask_amount","ask_price","bid_price","bid_amount"]
[1748029887491,1.54927981,666.31,665.7,1.12108196]
[1748029887685,1.54927981,666.3,665.7,1.12108196]
[1748029887884,1.688,666.32,665.7,1.12108196]
[1748029887885,1.54927981,666.29,665.7,1.12108196]
[1748029888088,1.54927981,666.28,665.7,1.12108196]
[1748029888284,1.54927981,666.27,665.7,1.12108196]
[1748029888489,1.688,666.32,664.61,0.47751025]
[1748029888490,1.54927981,666.26,665.71,1.12108196]
[1748029888686,1.54927981,666.25,665.71,1.12108196]
[1748029888889,1.54927981,666.24,665.71,1.12108196]
[1748029889089,1.54927981,666.23,665.71,1.12108196]
[1748029889290,1.54914708,666.22,665.71,1.12108196]
[1748029889490,1.54900056,666.21,665.71,1.12108196]
[1748029889692,1.07315272,666.2,665.71,1.12108196]
[1748029889887,1.07315272,666.19,665.71,1.12108196]
[1748029890089,1.07315272,666.18,665.69,1.12108196]
[1748029890292,1.07315272,666.17,665.69,1.12108196]
[1748029890493,1.11865745,666.31,665.69,1.12108196]
[1748029890692,1.54666898,666.3,665.69,1.12108196]
[1748029890987,1.5465964,666.29,665.69,1.12108196]
[1748029891191,1.5465964,666.28,665.69,1.12108196]
[1748029891391,1.5465964,666.27,665.69,1.12108196]
[1748029891588,1.5465964,666.26,665.69,1.12108196]
[1748029891788,1.5465964,666.25,665.69,1.12108196]
[1748029891994,1.5465964,666.24,665.69,1.12108196]
[1748029892189,1.5465964,666.23,665.69,1.12108196]
[1748029892388,1.5465964,666.22,665.69,1.12108196]
[1748029892588,1.5465964,666.21,665.69,1.12108196]
[1748029892894,1.54718291,666.2,665.69,1.12108196]
[1748029893091,1.5470102,666.19,665.69,1.12108196]
[1748029893288,1.5470102,666.18,665.69,1.12108196]
[1748029893492,1.5470102,666.17,665.69,1.12108196]
[1748029893695,1.5470102,666.16,665.69,1.12108196]
[1748029893895,1.5470102,666.15,665.69,1.12108196]
[1748029894193,1.5470102,666.14,665.69,1.12108196]
[1748029894393,1.5470102,666.13,665.69,1.12108196]
[1748029894593,1.5470102,666.12,665.69,1.12108196]
[1748029894790,1.5470102,666.11,665.69,1.12108196]
[1748029894990,1.5470102,666.1,665.55,1.12108196]
[1748029895190,1.54664082,666.09,665.55,1.12108196]
[1748029895389,1.54664082,666.08,665.55,1.12108196]
[1748029895590,1.54664082,666.07,665.55,1.12108196]
[1748029895796,1.54664082,666.06,665.55,1.12108196]
[1748029895996,1.54664082,666.05,665.55,1.12108196]
[1748029896296,1.54664082,666.04,665.55,1.12108196]
[1748029896497,1.54579876,666.03,665.55,1.12108196]
[1748029896792,1.54579876,666.02,665.55,1.12108196]
[1748029896996,1.54579876,666.01,665.55,1.12108196]
[1748029897197,1.54579876,666.0,665.55,1.12108196]
[1748029897397,1.54579876,665.99,665.55,1.12108196]
[1748029897697,1.54579876,665.98,665.55,1.12108196]
[1748029897895,1.54579876,665.97,665.55,1.12108196]
[1748029898096,1.54579876,665.96,665.55,1.12108196]
[1748029898296,1.54435352,665.95,665.55,1.12108196]
[1748029898497,1.54435352,665.94,665.14,1.12108196]
[1748029898698,1.54435352,665.93,665.14,1.12108196]
[1748029898997,1.54435352,665.92,665.14,1.12108196]
[1748029899197,1.54435352,665.91,665.14,1.12108196]
[1748029899493,1.54435352,665.9,665.14,1.12108196]
[1748029899693,1.54435352,665.89,665.14,1.12108196]
[1748029899897,1.54435352,665.88,665.14,1.12108196]
[1748029900192,1.54435352,665.87,665.14,1.12108196]
[1748029900391,1.06993724,665.86,665.14,1.12108196]
[1748029900591,1.06993724,665.85,665.14,1.12108196]
[1748029900796,1.06993724,665.84,665.14,1.12108196]
[1748029900995,1.11865745,666.06,665.14,1.12108196]
[1748029901193,1.11865745,666.01,665.11,1.12108196]
[1748029901393,1.54181986,666.0,665.11,1.12108196]
[1748029901593,1.54181986,665.99,665.11,1.12108196]
[1748029901798,1.54181986,665.98,665.11,1.12108196]
[1748029901997,1.54181986,665.97,665.11,1.12108196]
[1748029902297,1.54135158,665.96,665.11,1.12108196]
[1748029902499,1.54135158,665.95,665.11,1.12108196]
[1748029902699,1.54135158,665.94,665.11,1.12108196]
[1748029902899,1.535,665.96,665.11,1.12108196]
[1748029902900,1.54135158,665.93,665.11,1.12108196]
[1748029903095,1.54135158,665.92,665.11,1.12108196]
[1748029903299,1.54135158,665.91,665.11,1.12108196]
[1748029903494,0.47297318,665.9,665.11,1.12108196]
[1748029903703,1.06667209,665.89,665.11,1.12108196]
[1748029903898,1.06667209,665.88,665.11,1.12108196]
[1748029904098,1.06667209,665.87,665.11,1.12108196]
[1748029904295,1.535,665.96,665.1,1.12108196]
[1748029904496,1.54114887,665.95,665.1,1.12108196]
[1748029904700,1.54114887,665.94,665.1,1.12108196]
[1748029904900,1.06822932,665.93,665.1,1.12108196]
[1748029905102,1.06822932,665.92,665.1,1.12108196]
[1748029905299,1.06822932,665.91,665.1,1.12108196]
[1748029905498,1.535,665.96,665.1,1.12108196]
[1748029905699,1.06804841,665.95,665.1,1.12108196]
[1748029905902,1.06804841,665.94,665.1,1.12108196]
[1748029906104,1.06804841,665.93,665.1,1.12108196]
[1748029906304,1.06804841,665.92,665.1,1.12108196]
[1748029906508,1.06804841,665.91,665.1,1.12108196]
[1748029906807,1.535,665.96,665.11,1.12108196]
[1748029907005,1.06785519,665.95,665.11,1.12108196]
[1748029907306,1.06786082,665.94,665.11,1.12108196]
[1748029907506,1.06786082,665.93,665.11,1.12108196]
[1748029907708,1.535,665.96,665.11,1.12108196]
[1748029907908,1.06773272,665.95,665.11,1.12108196]
[1748029908107,1.06773272,665.94,665.11,1.12108196]
[1748029908308,1.535,665.96,665.11,1.12108196]
[1748029908509,1.535,665.96,665.14,1.12108196]
[1748029911110,1.535,665.96,665.24,1.12108196]
[1748029917412,0.30027775,666.05,665.24,1.12108196]
[1748029917613,1.53963562,666.04,665.24,1.12108196]
[1748029917813,1.06719055,666.03,665.24,1.12108196]
[1748029918013,1.06719055,666.02,665.24,1.12108196]
[1748029918214,1.06719055,666.01,665.24,1.12108196]
[1748029918424,1.06719055,666.0,665.23,1.12108196]
[1748029918713,1.06719055,665.99,665.23,1.12108196]
[1748029918913,1.06719055,665.98,665.23,1.12108196]
[1748029919209,0.30027775,666.05,665.23,1.12108196]
[1748029919413,1.433,665.97,665.23,1.12108196]
[1748029920918,1.433,665.97,665.22,1.12108196]
[1748029921618,1.06686807,665.96,665.22,1.12108196]
[1748029921817,1.06686807,665.95,665.22,1.12108196]
[1748029922117,1.06686807,665.94,665.22,1.12108196]
[1748029922318,1.06686807,665.93,665.22,1.12108196]
[1748029922614,1.06686807,665.92,665.22,1.12108196]
[1748029922819,1.06686807,665.91,665.22,1.12108196]
[1748029923013,1.53901275,665.9,665.22,1.12108196]
[1748029923218,1.06686807,665.89,665.22,1.12108196]
[1748029923518,1.06686807,665.88,665.22,1.12108196]
[1748029923819,1.06686807,665.87,665.22,1.12108196]
[1748029924118,1.06686807,665.86,665.22,1.12108196]
[1748029924319,1.06686807,665.85,665.22,1.12108196]
[1748029924520,1.433,665.97,664.96,1.12108196]
[1748029924719,1.83845379,665.96,664.96,1.12108196]
[1748029924920,1.8384583,665.95,664.96,1.12108196]
[1748029925219,1.83846281,665.94,664.96,1.12108196]
[1748029925420,1.53813546,665.93,664.96,1.12108196]
[1748029925613,1.53813546,665.92,664.96,1.12108196]
[1748029925815,1.53813546,665.91,664.96,1.12108196]
[1748029926014,1.83848085,665.9,664.96,1.12108196]
[1748029926215,1.53813546,665.89,664.96,1.12108196]
[1748029926416,1.53779134,665.88,664.96,1.12108196]
[1748029926617,1.53779134,665.87,664.96,1.12108196]
[1748029926916,1.53779134,665.86,664.96,1.12108196]
[1748029927119,1.06613771,665.85,664.96,1.12108196]
[1748029927317,1.06613771,665.84,664.88,1.12108196]
[1748029927521,1.06613771,665.83,664.88,1.12108196]
[1748029927721,1.06613771,665.82,664.88,1.12108196]
[1748029927917,1.06613771,665.81,664.88,1.12108196]
[1748029928218,1.06545493,665.8,664.88,1.12108196]
[1748029928522,0.30034539,665.9,664.88,1.12108196]
[1748029928721,1.53690285,665.89,664.88,1.12108196]
[1748029928922,1.53690285,665.88,664.88,1.12108196]
[1748029929118,1.53690285,665.87,664.88,1.12108196]
[1748029929323,1.06539419,665.86,664.88,1.12108196]
[1748029929623,1.06539419,665.85,664.88,1.12108196]
[1748029929818,1.06539419,665.84,664.88,1.12108196]
[1748029930020,1.06539419,665.83,664.88,1.12108196]
[1748029930217,1.06539419,665.82,664.88,1.12108196]
[1748029930517,1.06539419,665.81,664.88,1.12108196]
[1748029930717,1.06539419,665.8,664.88,1.12108196]
[1748029930922,0.30034539,665.9,664.88,1.12108196]
[1748029931123,1.53628166,665.89,664.88,1.12108196]
[1748029931323,1.53628166,665.88,664.88,1.12108196]
[1748029931524,1.53628166,665.87,664.88,1.12108196]
[1748029931721,1.53624378,665.86,664.88,1.12108196]
[1748029931919,1.06480655,665.85,664.88,1.12108196]
[1748029932118,1.06480655,665.84,664.88,1.12108196]
[1748029932319,1.06480655,665.83,664.88,1.12108196]
[1748029932523,1.06480655,665.82,664.88,1.12108196]
[1748029932717,1.06480655,665.81,664.88,1.12108196]
[1748029932919,1.06480655,665.8,664.88,1.12108196]
[1748029933120,0.30034539,665.9,664.89,1.12108196]
[1748029933323,1.5368564,665.89,664.89,1.12108196]
[1748029933625,1.53696382,665.88,664.89,1.12108196]
[1748029933825,1.53696382,665.87,664.89,1.12108196]
[1748029934024,1.53696382,665.86,664.89,1.12108196]
[1748029934324,0.30034539,665.9,664.89,1.12108196]
[1748029935225,1.53707968,665.89,664.89,1.12108196]
[1748029935521,1.53718723,665.88,664.89,1.12108196]
[1748029935725,1.53718723,665.87,664.94,1.12108196]
[1748029935925,1.53718723,665.86,664.94,1.12108196]
[1748029936127,1.06542511,665.85,664.94,1.12108196]
[1748029936324,1.06542511,665.84,664.94,1.12108196]
[1748029936524,1.06542511,665.83,664.94,1.12108196]
[1748029936724,1.06542511,665.82,664.94,1.12108196]
[1748029936925,1.06542511,665.81,664.94,1.12108196]
[1748029937125,1.06542511,665.8,664.94,1.12108196]
[1748029937425,0.30034539,665.9,664.94,1.12108196]
[1748029937626,1.5373997,665.89,664.94,1.12108196]
[1748029937827,1.5373997,665.88,664.87,1.12108196]
[1748029938029,1.5373997,665.87,664.87,1.12108196]
[1748029938224,1.5373997,665.86,664.87,1.12108196]
[1748029938428,1.06557239,665.85,664.87,1.12108196]
[1748029938628,1.06557239,665.84,664.87,1.12108196]
[1748029938821,1.06557239,665.83,664.87,1.12108196]
[1748029939122,1.06569933,665.82,664.87,1.12108196]
[1748029939324,1.06569933,665.81,664.87,1.12108196]
[1748029939527,1.06569933,665.8,664.87,1.12108196]
[1748029939724,1.06569933,665.79,664.87,1.12108196]
[1748029939924,0.30034539,665.9,664.87,1.12108196]
[1748029940130,1.53791723,665.89,664.87,1.12108196]
[1748029940329,1.53791723,665.88,664.87,1.12108196]
[1748029940629,1.53811993,665.87,664.89,1.12108196]
[1748029940826,1.53811993,665.86,664.89,1.12108196]
[1748029941122,1.53811993,665.85,664.89,1.12108196]
[1748029941323,1.06607166,665.84,664.89,1.12108196]
[1748029941523,1.06607166,665.83,664.89,1.12108196]
[1748029941823,1.06607166,665.82,664.89,1.12108196]
[1748029942027,1.06607166,665.81,664.89,1.12108196]
[1748029942224,1.06607166,665.8,664.89,1.12108196]
[1748029942429,1.06656077,665.79,664.89,1.12108196]
[1748029942725,0.30034539,665.9,664.89,1.12108196]
[1748029942929,1.53886806,665.89,664.89,1.12108196]
[1748029943125,1.53886806,665.88,664.89,1.12108196]
[1748029943331,1.53886806,665.87,664.89,1.12108196]
[1748029943632,1.53886806,665.86,664.92,1.12108196]
[1748029943831,1.06659016,665.85,664.92,1.12108196]
[1748029944134,0.30034539,665.9,664.92,1.12108196]
[1748029946533,0.30034539,665.9,664.96,1.12108196]
[1748029949235,0.30034539,665.9,665.07,1.12108196]
[1748029952238,1.11865745,665.85,665.14,1.12108196]
[1748029954532,1.11865745,665.84,665.14,1.12108196]
[1748029954738,1.11865745,665.84,665.15,1.12108196]
[1748029958041,1.11865745,665.82,665.17,1.12108196]
[1748029960243,1.11865745,665.81,665.16,1.12108196]
[1748029961145,1.333,665.8,665.16,1.12108196]
[1748029965244,1.333,665.8,665.03,1.49477595]
[1748029965540,1.333,665.8,664.04,0.47751025]
[1748029965745,1.333,665.8,664.06,0.3011776]
[1748029966447,1.333,665.8,665.15,1.12257434]
[1748029971546,2.45128121,665.8,665.16,1.12257434]
[1748029974150,1.11828121,665.77,665.2,1.12257434]
[1748029976252,1.11828121,665.75,665.23,1.12257434]
[1748029979052,1.11828121,665.7,665.28,1.12257434]
[1748029981958,1.11828121,665.68,665.29,1.12257434]
[1748029993473,1.11828121,665.69,665.12,1.12257434]
[1748029995869,1.11828121,665.69,665.1,1.12257434]
[1748029996276,1.5550727,665.68,665.1,1.12257434]
[1748029996575,1.5550727,665.67,665.1,1.12257434]
[1748029996768,1.5550727,665.66,665.1,1.12257434]
[1748029996968,1.11828121,665.69,665.1,1.12257434]
[1748029996969,1.5550727,665.65,665.1,1.12257434]
[1748029997172,1.5550727,665.64,665.1,1.12257434]
[1748029997372,1.5550727,665.63,665.1,1.12257434]
[1748029997572,1.5550727,665.62,665.1,1.12257434]
[1748029997769,1.5550727,665.61,665.1,1.12257434]
[1748029997969,1.5550727,665.6,665.1,1.12257434]
[1748029998171,1.5550727,665.59,665.1,1.12257434]
[1748029998374,1.5550727,665.58,665.1,1.12257434]
[1748029998673,1.5550727,665.57,665.1,1.12257434]
[1748029998876,1.55486282,665.56,665.08,1.12257434]
[1748029999175,1.55486282,665.55,665.08,1.12257434]
[1748029999371,1.07853252,665.54,665.08,1.12257434]
[1748029999676,1.07853252,665.53,665.08,1.12257434]
[1748029999977,1.07792153,665.52,665.08,1.12257434]
[1748030000181,1.07792153,665.51,665.08,1.12257434]
[1748030000374,1.11828121,665.7,665.08,1.12257434]
[1748030000572,1.55399483,665.69,665.08,1.12257434]
[1748030000775,1.55399483,665.68,665.08,1.12257434]
[1748030000976,1.55399483,665.67,665.08,1.12257434]
[1748030001177,1.55399483,665.66,665.08,1.12257434]
[1748030001376,1.55399483,665.66,664.71,2.24514868]
[1748030001377,1.11828121,665.64,665.09,1.12257434]
[1748030001674,1.55399483,665.63,665.09,1.12257434]
[1748030001877,1.55382451,665.62,665.09,1.12257434]
[1748030002076,1.55382451,665.61,665.09,1.12257434]
[1748030002379,1.55382451,665.6,665.09,1.12257434]
[1748030002579,1.55382451,665.59,665.09,1.12257434]
[1748030002778,1.55382451,665.58,665.09,1.12257434]
[1748030002973,1.55382451,665.57,665.09,1.12257434]
[1748030003177,1.55382451,665.56,665.09,1.12257434]
[1748030003373,1.55382451,665.55,665.09,1.12257434]
[1748030003580,1.55382451,665.54,665.09,1.12257434]
[1748030003779,1.55382451,665.53,665.09,1.12257434]
[1748030004078,1.55382451,665.52,665.09,1.12257434]
[1748030004278,1.55382451,665.51,665.09,1.12257434]
[1748030004477,1.55382451,665.5,665.09,1.12257434]
[1748030004680,1.55382451,665.49,665.09,1.12257434]
[1748030004880,2.67210572,665.48,664.88,1.12257434]
[1748030005175,1.55382451,665.47,664.88,1.12257434]
[1748030005374,1.55382451,665.46,664.88,1.12257434]
[1748030005574,1.55382451,665.45,664.88,1.12257434]
[1748030005774,1.55382451,665.44,664.88,1.12257434]
[1748030005974,1.11828121,665.48,664.88,1.12257434]
[1748030005975,1.55382451,665.43,664.88,1.12257434]
[1748030006180,1.55382451,665.42,664.88,1.12257434]
[1748030006479,1.55382451,665.41,664.88,1.12257434]
[1748030006676,1.55382451,665.4,664.88,1.12257434]
[1748030006877,1.55382451,665.39,664.88,1.12257434]
[1748030007079,1.07766564,665.38,664.88,1.12257434]
[1748030007279,1.07766564,665.37,664.75,1.12257434]
[1748030007475,1.11828121,665.44,664.75,1.12257434]
[1748030007680,1.55471567,665.43,664.75,1.12257434]
[1748030007881,1.55471567,665.42,664.75,1.12257434]
[1748030008081,1.55471567,665.41,664.75,1.12257434]
[1748030008278,1.07523695,665.4,664.75,1.12257434]
[1748030008482,1.07523695,665.39,664.75,1.12257434]
[1748030008681,1.07523695,665.38,664.75,1.12257434]
[1748030008877,1.222,665.4,664.75,1.12257434]
[1748030009079,1.07485006,665.39,664.75,1.12257434]
[1748030009280,1.07485006,665.38,664.75,1.12257434]
[1748030009481,1.222,665.4,664.75,1.12257434]
[1748030009681,1.07450205,665.39,664.75,1.12257434]
[1748030009981,1.222,665.4,664.72,1.12257434]
[1748030010183,1.07451417,665.39,664.72,1.12257434]
[1748030010382,1.222,665.4,664.72,1.12257434]
[1748030012787,1.222,665.4,664.78,1.12257434]
[1748030015884,1.222,665.4,664.8,1.12257434]
[1748030018083,1.222,665.4,664.81,1.12257434]
[1748030021187,1.222,665.4,664.79,1.12257434]
[1748030023789,1.222,665.4,664.78,1.12257434]
[1748030026390,1.222,665.4,664.8,1.12257434]
[1748030031194,1.222,665.4,663.99,3.74191447]
[1748030031195,1.222,665.4,664.81,1.12257434]
[1748030033600,1.222,665.4,664.83,1.12257434]
[1748030036100,1.222,665.4,664.88,1.12257434]
[1748030037501,1.11828121,665.59,664.88,1.12257434]
[1748030037703,1.55302136,665.58,664.88,1.12257434]
[1748030038003,1.07460763,665.57,664.88,1.12257434]
[1748030038301,1.07460763,665.56,664.88,1.12257434]
[1748030038498,1.07460763,665.55,664.88,1.12257434]
[1748030038703,1.07460763,665.54,664.88,1.12257434]
[1748030038902,1.07421677,665.53,664.88,1.12257434]
[1748030039103,1.11828121,665.59,664.88,1.12257434]
[1748030039302,1.55232812,665.58,664.88,1.12257434]
[1748030039598,1.55232812,665.57,664.88,1.12257434]
[1748030039803,1.07412797,665.56,664.89,1.12257434]
[1748030040000,1.07412797,665.55,664.89,1.12257434]
[1748030040196,1.094,665.55,664.89,1.12257434]
[1748030040399,1.07403262,665.54,664.89,1.12257434]
[1748030040597,1.07403262,665.53,664.89,1.12257434]
[1748030040800,1.094,665.55,664.89,1.12257434]
[1748030040995,1.07411795,665.54,664.89,1.12257434]
[1748030041196,1.07411795,665.53,664.89,1.12257434]
[1748030041397,1.094,665.55,664.89,1.12257434]
[1748030041602,1.07421302,665.54,664.89,1.12257434]
[1748030041805,1.07421302,665.53,664.89,1.12257434]
[1748030042009,1.094,665.55,664.89,1.12257434]
[1748030042212,1.07427296,665.54,664.89,1.12257434]
[1748030042412,1.07432312,665.53,664.89,1.12257434]
[1748030042611,1.094,665.55,664.89,1.12257434]
[1748030042911,1.07441431,665.54,664.9,1.12257434]
[1748030043111,1.07441431,665.53,664.9,1.12257434]
[1748030043305,1.07441431,665.52,664.9,1.12257434]
[1748030043506,1.094,665.55,664.9,1.12257434]
[1748030043713,1.07455846,665.54,664.9,1.12257434]
[1748030044013,1.07455846,665.53,664.9,1.12257434]
[1748030044210,1.07455846,665.52,664.9,1.12257434]
[1748030044411,1.094,665.55,664.9,1.12257434]
[1748030044606,1.07470888,665.54,664.9,1.12257434]
[1748030044807,1.07470888,665.53,664.9,1.12257434]
[1748030045010,1.07470888,665.52,664.9,1.12257434]
[1748030045207,1.0748735,665.51,664.9,1.12257434]
[1748030045412,1.094,665.55,664.9,1.12257434]
[1748030045612,1.07487189,665.54,664.9,1.12257434]
[1748030045813,1.07487189,665.53,664.9,1.12257434]
[1748030046113,1.07486989,665.52,664.92,1.12257434]
[1748030046313,1.07505918,665.51,664.92,1.12257434]
[1748030046513,2.21228121,665.55,664.92,1.12257434]
[1748030046812,1.07505503,665.54,664.92,1.12257434]
[1748030047014,1.07505503,665.53,664.92,1.12257434]
[1748030047211,1.07505503,665.52,664.92,1.12257434]
[1748030047410,1.07505503,665.51,664.92,1.12257434]
[1748030047608,1.07505503,665.5,664.92,1.12257434]
[1748030047808,2.21228121,665.55,664.92,1.12257434]
[1748030048114,1.55396601,665.54,664.92,1.12257434]
[1748030048307,1.07526127,665.53,664.92,1.12257434]
[1748030048512,1.07526127,665.52,664.92,1.12257434]
[1748030048712,1.07526127,665.51,664.92,1.12257434]
[1748030048912,1.07526127,665.5,664.89,1.12257434]
[1748030049114,1.094,665.55,664.89,1.12257434]
[1748030049313,1.55448129,665.54,664.89,1.12257434]
[1748030049516,1.07551632,665.53,664.89,1.12257434]
[1748030049816,1.07551632,665.52,664.89,1.12257434]
[1748030050009,1.07551632,665.51,664.89,1.12257434]
[1748030050209,1.094,665.55,664.89,1.12257434]
[1748030050507,1.55513677,665.54,664.89,1.12257434]
[1748030050709,1.55513677,665.53,664.89,1.12257434]
[1748030050913,1.55513677,665.52,664.89,1.12257434]
[1748030051213,1.07604757,665.51,664.89,1.12257434]
[1748030051413,1.07604757,665.5,664.89,1.12257434]
[1748030051613,1.07604757,665.49,664.89,1.12257434]
[1748030051814,1.07604757,665.48,664.91,1.12257434]
[1748030052109,1.07604757,665.47,664.91,1.12257434]
[1748030052310,1.07667267,665.46,664.91,1.12257434]
[1748030052511,1.094,665.55,664.91,1.12257434]
[1748030052710,1.55600153,665.54,664.91,1.12257434]
[1748030052914,1.55600153,665.53,664.91,1.12257434]
[1748030053110,1.55600153,665.52,664.91,1.12257434]
[1748030053314,1.55603249,665.51,664.91,1.12257434]
[1748030053510,1.55603249,665.5,664.91,1.12257434]
[1748030053714,1.07669122,665.49,664.91,1.12257434]
[1748030054016,1.07669122,665.48,664.92,1.12257434]
[1748030054213,1.07669122,665.47,664.92,1.12257434]
[1748030054415,1.07669122,665.46,664.92,1.12257434]
[1748030054618,2.21228121,665.55,664.92,1.12257434]
[1748030054916,1.55647973,665.54,664.92,1.12257434]
[1748030055111,1.55647674,665.53,664.92,1.12257434]
[1748030055312,1.55647674,665.52,664.92,1.12257434]
[1748030055510,1.55647674,665.51,664.92,1.12257434]
[1748030055718,1.55647674,665.5,664.92,1.12257434]
[1748030055911,1.07697304,665.49,664.92,1.12257434]
[1748030056111,1.07697304,665.48,664.92,1.12257434]
[1748030056312,1.07697304,665.47,664.92,1.12257434]
[1748030056617,1.07697304,665.46,664.93,1.12257434]
[1748030056917,1.07715229,665.45,664.93,1.12257434]
[1748030057117,2.21228121,665.55,664.93,1.12257434]
[1748030057316,1.55667595,665.54,664.93,1.12257434]
[1748030057511,1.55667595,665.53,664.93,1.12257434]
[1748030057712,1.55667595,665.52,664.93,1.12257434]
[1748030057914,1.55667595,665.51,664.93,1.12257434]
[1748030058114,1.55667595,665.5,664.93,1.12257434]
[1748030058311,1.55667595,665.49,664.93,1.12257434]
[1748030058516,1.55667595,665.48,664.93,1.12257434]
[1748030058712,1.07738094,665.47,664.93,1.12257434]
[1748030058913,1.07738094,665.46,664.93,1.12257434]
[1748030059112,1.07738094,665.45,664.93,1.12257434]
[1748030059320,1.07738094,665.44,664.93,1.12257434]
[1748030059517,2.21228121,665.55,664.93,1.12257434]
[1748030059716,1.11828121,665.51,664.96,1.12257434]
[1748030059917,1.55725089,665.5,664.96,1.12257434]
[1748030060117,1.55725089,665.49,664.96,1.12257434]
[1748030060417,1.55743007,665.48,664.96,1.12257434]
[1748030060615,1.55743007,665.47,664.96,1.12257434]
[1748030060813,1.07763247,665.46,664.96,1.12257434]
[1748030061116,1.07763247,665.45,664.96,1.12257434]
[1748030061316,1.07763247,665.44,664.96,1.12257434]
[1748030061518,1.07763247,665.43,664.96,1.12257434]
[1748030061715,1.11828121,665.51,664.96,1.12257434]
[1748030061716,1.07763247,665.42,664.96,1.12257434]
[1748030061917,1.11828121,665.51,664.96,1.12257434]
[1748030062123,1.55748203,665.5,664.96,1.12257434]
[1748030062416,1.55748203,665.49,664.96,1.12257434]
[1748030062617,1.55748203,665.48,664.96,1.12257434]
[1748030062818,1.55748203,665.47,664.96,1.12257434]
[1748030063017,1.55748203,665.46,664.96,1.12257434]
[1748030063319,1.07769383,665.45,664.96,1.12257434]
[1748030063518,1.07769383,665.44,664.96,1.12257434]
[1748030063719,1.07769383,665.43,664.96,1.12257434]
[1748030063915,1.07769383,665.42,664.96,1.12257434]
[1748030064117,1.11828121,665.5,664.96,1.12257434]
[1748030064318,1.55778643,665.49,664.96,1.12257434]
[1748030064519,1.55778643,665.48,664.96,1.12257434]
[1748030064718,1.55778643,665.47,664.96,1.12257434]
[1748030064918,1.55778643,665.46,664.96,1.12257434]
[1748030065115,1.07787892,665.45,664.96,1.12257434]
[1748030065319,1.07787892,665.44,664.98,1.12257434]
[1748030065516,1.07787892,665.43,664.98,1.12257434]
[1748030065721,1.07787892,665.42,664.98,1.12257434]
[1748030066020,1.11828121,665.48,664.98,1.12257434]
[1748030066215,1.55827256,665.47,664.98,1.12257434]
[1748030066516,1.55827256,665.46,664.98,1.12257434]
[1748030066715,1.55827256,665.45,664.98,1.12257434]
[1748030067015,1.07827455,665.44,664.98,1.12257434]
[1748030067220,1.07827455,665.43,664.98,1.12257434]
[1748030067419,1.07827455,665.42,664.98,1.12257434]
[1748030067621,1.11828121,665.48,664.98,1.12257434]
[1748030067823,1.55872434,665.47,664.98,1.12257434]
[1748030068121,1.55872434,665.46,665.0,1.12257434]
[1748030068316,1.55889567,665.45,665.0,1.12257434]
[1748030068519,1.55889567,665.44,665.0,1.12257434]
[1748030068721,1.07875812,665.43,665.0,1.12257434]
[1748030068921,1.07875812,665.42,665.0,1.12257434]
[1748030069219,1.07875812,665.41,665.0,1.12257434]
[1748030069416,1.0789876,665.4,665.0,1.12257434]
[1748030069616,1.11828121,665.47,665.0,1.12257434]
[1748030069820,1.55929997,665.46,665.0,1.12257434]
[1748030070019,1.55929997,665.45,665.0,1.12257434]
[1748030070219,1.55929997,665.44,665.0,1.12257434]
[1748030070416,1.55929997,665.43,665.0,1.12257434]
[1748030070619,1.07898539,665.42,665.0,1.12257434]
[1748030070816,1.07898539,665.41,665.0,1.12257434]
[1748030071124,1.07898539,665.4,665.0,1.12257434]
[1748030071321,1.07898539,665.39,664.99,1.12257434]
[1748030071523,1.07898539,665.38,664.99,1.12257434]
[1748030071715,1.11828121,665.48,664.99,1.12257434]
[1748030071921,1.55986938,665.47,664.99,1.12257434]
[1748030072121,1.55986938,665.46,664.99,1.12257434]
[1748030072320,1.55986938,665.45,664.99,1.12257434]
[1748030072518,1.55986938,665.44,664.99,1.12257434]
[1748030072821,1.55986938,665.43,664.99,1.12257434]
[1748030073124,1.5599185,665.42,664.99,1.12257434]
[1748030073318,1.07937933,665.41,664.99,1.12257434]
[1748030073523,1.07937933,665.4,664.99,1.12257434]
[1748030073723,1.07937933,665.39,664.99,1.12257434]
[1748030073922,1.07937933,665.38,664.99,1.12257434]
[1748030074123,1.11828121,665.48,664.99,1.12257434]
[1748030074327,1.56011344,665.47,664.98,1.12257434]
[1748030074524,1.11828121,665.49,664.98,1.12257434]
[1748030075328,1.56023509,665.48,664.98,1.12257434]
[1748030075626,1.56023509,665.47,664.98,1.12257434]
[1748030075921,1.56023509,665.46,664.98,1.12257434]
[1748030076126,1.07966873,665.45,664.98,1.12257434]
[1748030076322,1.07966873,665.44,664.98,1.12257434]
[1748030076523,1.07966873,665.43,664.98,1.12257434]
[1748030076724,2.21228121,665.55,665.02,1.12257434]
[1748030076924,1.56029127,665.54,665.02,1.12257434]
[1748030077125,1.56029127,665.53,665.02,1.12257434]
[1748030077325,1.56029127,665.52,665.02,1.12257434]
[1748030077523,1.56029127,665.51,665.02,1.12257434]
[1748030077728,1.56029127,665.5,665.02,1.12257434]
[1748030077928,1.56029127,665.49,665.02,1.12257434]
[1748030078125,1.56029127,665.48,665.02,1.12257434]
[1748030078323,1.56029127,665.47,665.02,1.12257434]